bitfinex/quotes_SOLUSD_20251216
["timestamp","ask_amount","ask_price","bid_price","bid_amount"]
[1765906172580,28.03635591,127.57,127.53,0.71]
[1765906172886,30.49529359,127.57,127.53,0.71]
[1765906173888,27.43635591,127.57,127.54,0.72]
[1765906174888,28.03635591,127.57,127.54,0.72]
[1765906175084,7.83883358,127.57,127.54,2.45893768]
[1765906175281,7.83883358,127.57,127.55,0.7]
[1765906176275,27.43591753,127.57,127.54,0.7]
[1765906177573,29.89485521,127.57,127.54,0.7]
[1765906177966,7.83883358,127.57,127.54,0.7]
[1765906178166,7.83883358,127.57,127.55,0.7]
[1765906180670,7.83852373,127.58,127.56,0.7]
[1765906181219,7.83760482,127.59,127.56,0.7]
[1765906182574,7.83760482,127.59,127.57,0.7]
[1765906185983,10.29407275,127.61,127.57,0.7]
[1765906186183,27.42731759,127.61,127.58,0.7]
[1765906186687,7.83637645,127.61,127.58,0.7]
[1765906186895,7.83637645,127.61,127.58,2.4576963]
[1765906187096,7.83637645,127.61,127.59,0.7]
[1765906188002,7.83576241,127.62,127.59,0.7]
[1765906188301,7.83576241,127.62,127.58,0.7]
[1765906188503,7.83576241,127.62,127.59,0.7]
[1765906189676,7.83576241,127.62,127.6,0.7]
[1765906190074,27.42417486,127.63,127.6,0.7]
[1765906190492,29.88187116,127.63,127.6,0.7]
[1765906191810,27.42417486,127.63,127.6,0.7]
[1765906191993,29.88187116,127.63,127.6,0.7]
[1765906192388,29.88187116,127.63,127.59,8.6]
[1765906192389,3.0576963,127.62,127.59,9.3]
[1765906192601,2.4576963,127.61,127.59,9.3]
[1765906192798,3.0576963,127.62,127.59,9.3]
[1765906193297,2.4576963,127.62,127.59,9.3]
[1765906194490,7.83637645,127.61,127.59,9.3]
[1765906195415,7.83637645,127.61,127.59,0.7]
[1765906198508,27.42731759,127.61,127.59,0.7]
[1765906199987,27.42731759,127.61,127.57,2.4576963]
[1765906200190,28.02731759,127.61,127.58,0.7]
[1765906200509,30.48501389,127.61,127.58,0.7]
[1765906200725,0.6,127.59,127.54,7.84044656]
[1765906201038,28.02731759,127.61,127.58,0.7]
[1765906201311,7.83330722,127.66,127.6,2.4576963]
[1765906201517,7.83330722,127.66,127.63,0.7]
[1765906201719,7.83330722,127.66,127.64,0.7]
[1765906201883,10.29100352,127.66,127.62,8.6]
[1765906202082,10.89100352,127.66,127.62,9.3]
[1765906202314,10.29100352,127.66,127.62,0.7]
[1765906202521,3.0576963,127.65,127.62,0.7]
[1765906202716,7.83453462,127.64,127.62,0.7]
[1765906203507,19.78267026,127.67,127.64,0.7]
[1765906203885,8.03296124,127.67,127.64,2.4576963]
[1765906204115,0.2,127.67,127.66,0.67]
[1765906204326,0.2,127.7,127.68,0.67]
[1765906204627,0.2,127.7,127.69,3.1276963]
[1765906204800,0.2,127.7,127.69,0.67]
[1765906205315,0.66,127.69,127.63,10.43767296]
[1765906205519,0.66,127.69,127.66,0.67]
[1765906205520,3.1176963,127.69,127.66,0.67]
[1765906206020,8.03085356,127.7,127.66,0.67]
[1765906206021,0.2,127.7,127.69,0.67]
[1765906206230,0.2,127.7,127.69,11.7076963]
[1765906207121,0.2,127.7,127.69,28.34910805]
[1765906207425,0.2,127.73,127.72,8.80994492]
[1765906207723,0.2,127.73,127.72,11.93764122]
[1765906208414,0.2,127.75,127.73,0.67]
[1765906208600,0.2,127.75,127.74,20.51764122]
[1765906208917,0.2,127.75,127.74,31.5865791]
[1765906209707,0.2,127.76,127.74,30.9165791]
[1765906209893,0.2,127.76,127.75,11.93764122]
[1765906210092,0.2,127.77,127.76,9.47994492]
[1765906210308,0.2,127.77,127.76,12.72035881]
[1765906210509,0.2,127.77,127.76,9.47994492]
[1765906210797,0.2,127.77,127.76,28.34481717]
[1765906211203,0.66,127.85,127.76,57.68043001]
[1765906211423,8.48175778,127.85,127.82,2.4576963]
[1765906211725,0.66,127.84,127.82,11.0376963]
[1765906212039,7.82175778,127.85,127.82,11.0376963]
[1765906212040,0.66,127.86,127.82,11.7076963]
[1765906212218,0.66,127.86,127.83,2.4576963]
[1765906212415,0.66,127.88,127.85,2.4576963]
[1765906212623,8.47921964,127.89,127.86,2.4576963]
[1765906212814,28.02726874,127.89,127.86,2.4576963]
[1765906213226,28.02726874,127.89,127.85,9.25]
[1765906213415,28.02726874,127.89,127.86,2.4576963]
[1765906213731,8.47921964,127.89,127.86,3.1276963]
[1765906213927,8.47921964,127.89,127.86,2.4576963]
[1765906214240,8.47921964,127.89,127.86,3.1276963]
[1765906214601,8.47921964,127.89,127.86,2.4576963]
[1765906214602,0.66,127.88,127.86,2.4576963]
[1765906214818,8.47921964,127.89,127.86,11.7076963]
[1765906215001,29.82496504,127.89,127.84,3.1276963]
[1765906215209,0.66,127.87,127.84,8.58]
[1765906215425,0.66,127.86,127.84,8.58]
[1765906215725,0.66,127.86,127.83,0.67]
[1765906215929,2.4576963,127.87,127.83,0.67]
[1765906216120,0.66,127.87,127.83,10.95046802]
[1765906216318,7.81921964,127.89,127.85,0.67]
[1765906216500,7.81921964,127.89,127.86,0.67]
[1765906217121,8.67882711,127.9,127.87,0.67]
[1765906217302,8.67882711,127.9,127.86,8.80994492]
[1765906217503,8.67882711,127.9,127.86,9.47994492]
[1765906217704,11.13652341,127.9,127.86,9.25]
[1765906217907,0.2,127.9,127.86,16.40103726]
[1765906218120,0.2,127.9,127.87,6.39434815]
[1765906218309,8.67865617,127.9,127.87,0.67]
[1765906218516,3.3176963,127.9,127.87,0.67]
[1765906218815,11.13634789,127.9,127.86,9.25]
[1765906219012,2.4576963,127.89,127.86,8.58]
[1765906219527,3.1176963,127.87,127.83,0.67]
[1765906219710,2.4576963,127.87,127.84,14.2944299]
[1765906219912,2.4576963,127.87,127.84,8.58]
[1765906220114,3.1176963,127.85,127.84,8.58]
[1765906220411,0.66,127.84,127.79,0.67]
[1765906220629,10.94107987,127.83,127.8,5.71318647]
[1765906220808,10.94107987,127.83,127.8,0.67]
[1765906221007,10.94107987,127.83,127.79,9.25]
[1765906221243,0.66,127.81,127.77,0.67]
[1765906221451,0.66,127.81,127.78,8.58]
[1765906221938,7.2207374,127.81,127.78,8.58]
[1765906222236,6.5607374,127.8,127.74,26.13103861]
[1765906222448,6.5607374,127.79,127.76,0.67]
[1765906222648,8.48477261,127.8,127.76,7.82691006]
[1765906222829,8.48477261,127.8,127.76,8.49691006]
[1765906223744,15.04551001,127.8,127.76,8.49691006]
[1765906224952,15.04504,127.81,127.78,0.67]
[1765906225251,15.04504,127.81,127.77,0.67]
[1765906225449,0.66,127.79,127.76,16.40691006]
[1765906225629,7.2207374,127.8,127.76,17.07691006]
[1765906226522,15.04574609,127.8,127.76,17.07691006]
[1765906226739,15.04574609,127.8,127.76,16.40691006]
[1765906226916,15.04574609,127.8,127.76,17.07691006]
[1765906228233,15.04574609,127.8,127.77,5.72334296]
[1765906228440,15.04574609,127.8,127.76,17.07691006]
[1765906228639,15.04574609,127.8,127.77,5.72334269]
[1765906228841,15.04574609,127.8,127.76,17.07691006]
[1765906229224,15.04574609,127.8,127.77,5.72551129]
[1765906229424,15.04574609,127.8,127.76,17.07691006]
[1765906229844,8.48500869,127.8,127.77,7.8264222]
[1765906230037,6.5607374,127.81,127.78,6.39509518]
[1765906230361,15.04528175,127.81,127.77,17.30636712]
[1765906230524,0.66,127.79,127.76,17.07712439]
[1765906230718,6.5607374,127.79,127.76,8.58]
[1765906230947,7.2207374,127.79,127.76,8.58]
[1765906231155,7.2207374,127.79,127.76,9.25]
[1765906231456,11.32574132,127.79,127.76,17.07704034]
[1765906231636,19.15028567,127.81,127.77,23.03683746]
[1765906231835,18.49028567,127.81,127.77,17.30649044]
[1765906232153,19.15028567,127.81,127.77,17.30649044]
[1765906232554,11.32574132,127.79,127.76,8.58]
[1765906232724,11.32574132,127.79,127.77,5.7324697]
[1765906233036,11.32574132,127.79,127.73,30.23767335]
[1765906233037,0.66,127.77,127.72,11.10767296]
[1765906233227,10.66574132,127.76,127.73,5.73391446]
[1765906233427,11.32574132,127.75,127.73,8.58]
[1765906233753,10.66574132,127.75,127.73,8.58]
[1765906234134,11.38574132,127.76,127.73,9.28]
[1765906234654,18.49234788,127.77,127.74,0.7]
[1765906235029,38.57882115,127.81,127.75,8.80994492]
[1765906235254,18.49046745,127.8,127.76,0.7]
[1765906235550,0.72,127.79,127.76,0.7]
[1765906235725,11.38574132,127.79,127.76,0.7]
[1765906235925,11.38574132,127.78,127.75,8.58]
[1765906236119,27.38654146,127.8,127.75,8.58]
[1765906236429,10.66574132,127.76,127.75,8.58]
[1765906236627,11.38574132,127.76,127.75,8.58]
[1765906237244,10.66574132,127.76,127.75,8.58]
[1765906237752,10.66574132,127.76,127.73,17.10851217]
[1765906238052,10.66574132,127.76,127.74,5.74796663]
[1765906238254,10.66574132,127.76,127.73,17.10851217]
[1765906238553,10.66574132,127.76,127.74,5.75212154]
[1765906238855,10.66574132,127.76,127.73,17.10851217]
[1765906239024,10.66574132,127.76,127.74,5.75216688]
[1765906239226,10.66574132,127.76,127.73,17.10851217]
[1765906239426,19.21254906,127.77,127.74,5.75657031]
[1765906239620,19.21254906,127.77,127.73,17.10851217]
[1765906239865,19.21254906,127.77,127.71,16.64006367]
[1765906239866,0.72,127.73,127.71,16.64006367]
[1765906240048,11.38574132,127.74,127.71,9.50994492]
[1765906240353,10.66574132,127.74,127.72,0.7]
[1765906240547,10.66574132,127.74,127.71,17.33968585]
[1765906240751,11.38574132,127.74,127.71,25.21968585]
[1765906241053,11.38574132,127.74,127.71,25.91968585]
[1765906241275,10.66574132,127.74,127.71,25.91968585]
[1765906241458,4.55191372,127.73,127.71,8.58]
[1765906241937,0.72,127.71,127.67,0.7]
[1765906242253,4.55191372,127.71,127.67,17.11236776]
[1765906242655,3.83191372,127.7,127.67,17.11236776]
[1765906243261,4.55191372,127.71,127.67,17.11236776]
[1765906244043,3.83191372,127.7,127.67,17.11268981]
[1765906244236,3.83191372,127.7,127.67,9.28]
[1765906245160,11.66290648,127.7,127.67,9.28]
[1765906245356,7.83099276,127.7,127.67,9.28]
[1765906245657,11.66290648,127.7,127.67,17.11261444]
[1765906245841,7.83099276,127.7,127.67,17.11261444]
[1765906246242,0.72,127.75,127.69,0.7]
[1765906246562,4.55191372,127.75,127.71,0.7]
[1765906246734,3.83191372,127.74,127.7,18.08994492]
[1765906246937,0.72,127.73,127.7,18.08994492]
[1765906247153,0.72,127.73,127.7,25.92058702]
[1765906247458,19.2227886,127.74,127.7,25.92058702]
[1765906247877,19.2227886,127.74,127.71,0.7]
[1765906248169,19.2227886,127.74,127.7,25.92058702]
[1765906248170,8.5487918,127.74,127.7,25.92058702]
[1765906248362,7.82778864,127.75,127.72,0.7]
[1765906248541,7.82717595,127.76,127.74,0.7]
[1765906249055,19.22078018,127.77,127.74,0.7]
[1765906249946,8.54678338,127.77,127.74,0.7]
[1765906250142,38.81937141,127.78,127.74,0.7]
[1765906250143,7.82624242,127.78,127.74,0.7]
[1765906250349,8.54624242,127.78,127.74,8.52797824]
[1765906250941,0.72,127.78,127.75,9.50994492]
[1765906251249,8.54547416,127.79,127.75,9.50994492]
[1765906251659,19.21947096,127.79,127.75,9.50994492]
[1765906251949,18.49878416,127.8,127.75,27.31121796]
[1765906252179,7.82478736,127.8,127.77,0.7]
[1765906252683,0.72,127.79,127.76,8.58]
[1765906252872,0.72,127.79,127.76,9.28]
[1765906253056,8.54478736,127.8,127.76,9.28]
[1765906253256,7.82436569,127.81,127.78,0.7]
[1765906253559,8.54436569,127.81,127.78,0.7]
[1765906253776,29.65535675,127.82,127.78,0.7]
[1765906253974,7.82368699,127.82,127.78,0.7]
[1765906254145,7.82368699,127.82,127.79,9.28]
[1765906254569,8.54368699,127.82,127.79,9.28]
[1765906254875,8.54368699,127.82,127.79,8.58]
[1765906255047,8.54368699,127.82,127.79,17.10513785]
[1765906255244,19.20284878,127.83,127.79,16.40513785]
[1765906255469,19.20284878,127.83,127.79,17.10513785]
[1765906255769,19.20284878,127.83,127.8,0.7]
[1765906256166,19.20284878,127.83,127.79,17.10513785]
[1765906256372,8.54362331,127.82,127.79,16.40513785]
[1765906256545,8.54362331,127.82,127.79,8.58]
[1765906256546,0.72,127.81,127.79,8.58]
[1765906256867,7.82362331,127.82,127.79,9.28]
[1765906257054,8.54362331,127.82,127.79,9.28]
[1765906257378,0.72,127.78,127.69,0.7]
[1765906257547,11.3797274,127.73,127.69,8.58]
[1765906257744,10.6597274,127.73,127.7,0.7]
[1765906257969,10.6597274,127.72,127.69,18.08994492]
[1765906258352,7.8296273,127.72,127.7,0.7]
[1765906259475,18.48897312,127.73,127.7,0.7]
[1765906259848,19.20897312,127.73,127.69,16.4114243]
[1765906260056,19.20897312,127.73,127.69,17.1114243]
[1765906260501,18.48897312,127.73,127.7,0.7]
[1765906260662,19.20897312,127.73,127.7,0.7]
[1765906260868,10.6597274,127.72,127.69,9.28]
[1765906261187,7.82924572,127.73,127.69,0.7]
[1765906261400,11.15767296,127.76,127.72,9.50994492]
[1765906261698,8.58,127.77,127.73,9.28]
[1765906261699,18.48687602,127.77,127.73,9.28]
[1765906261860,19.20687602,127.77,127.73,9.28]
[1765906262468,0.72,127.76,127.73,9.28]
[1765906262680,7.82778864,127.75,127.73,8.58]
[1765906262881,7.82717658,127.76,127.73,9.28]
[1765906263264,10.6597274,127.78,127.75,0.7]
[1765906263464,10.6597274,127.79,127.75,0.7]
[1765906263673,0.72,127.79,127.75,0.7]
[1765906264589,19.20534959,127.79,127.75,0.7]
[1765906264888,8.50562219,127.79,127.75,0.72]
[1765906265073,11.3397274,127.78,127.74,17.3578664]
[1765906265389,11.3397274,127.78,127.74,9.52994492]
[1765906265574,11.3397274,127.78,127.73,27.0685036]
[1765906265575,10.6597274,127.77,127.73,9.3]
[1765906265769,0.68,127.77,127.73,9.3]
[1765906266002,0.68,127.78,127.74,27.29784255]
[1765906266216,11.3397274,127.77,127.73,9.3]
[1765906266788,7.82717595,127.76,127.73,8.58]
[1765906267087,7.82717595,127.76,127.73,9.3]
[1765906267873,8.50684334,127.77,127.73,17.1287697]
[1765906268188,19.16657074,127.77,127.73,9.3]
[1765906268389,10.6597274,127.76,127.73,9.3]
[1765906268597,7.82717595,127.76,127.73,9.3]
[1765906268888,7.82717595,127.76,127.73,17.12899198]
[1765906269989,7.82664143,127.77,127.74,9.52994492]
[1765906270194,7.82664143,127.77,127.75,0.72]
[1765906270492,11.3397274,127.76,127.73,8.58]
[1765906270790,0.68,127.8,127.74,8.80994492]
[1765906270978,19.01767296,127.81,127.74,8.80994492]
[1765906270979,0.68,127.78,127.74,8.80994492]
[1765906271187,11.3397274,127.78,127.74,8.80994492]
[1765906272096,19.16626146,127.78,127.74,8.80994492]
[1765906272309,19.16626146,127.78,127.74,16.6379951]
[1765906272502,7.82653406,127.78,127.74,27.2977225]
[1765906272706,19.16487819,127.8,127.75,10.6597274]
[1765906272999,7.82515079,127.8,127.77,0.72]
[1765906273476,8.50515079,127.8,127.76,17.38994492]
[1765906273677,38.04669352,127.8,127.74,10.6597274]
[1765906273906,0.68,127.77,127.75,8.58]
[1765906274104,11.3397274,127.78,127.75,8.58]
[1765906274275,11.3397274,127.79,127.75,9.3]
[1765906274811,0.68,127.78,127.75,9.3]
[1765906274971,27.38696612,127.8,127.75,9.3]
[1765906275169,0.68,127.78,127.75,9.3]
[1765906275978,7.82656335,127.77,127.75,9.3]
[1765906276710,10.6597274,127.79,127.75,8.58]
[1765906276918,7.82595584,127.78,127.76,0.72]
[1765906277406,8.50595584,127.78,127.75,8.58]
[1765906277575,0.68,127.76,127.74,8.58]
[1765906277890,0.68,127.75,127.73,8.58]
[1765906278199,8.50759197,127.76,127.73,8.58]
[1765906278370,8.50759197,127.76,127.73,9.3]
[1765906278811,7.82759197,127.76,127.73,9.3]
[1765906278969,8.50759197,127.76,127.73,9.3]
[1765906280504,19.16586508,127.78,127.74,9.52994492]
[1765906280887,19.16586508,127.78,127.75,0.72]
[1765906281083,7.82613768,127.78,127.75,0.72]
[1765906281690,38.73074221,127.78,127.74,9.52994492]
[1765906283187,38.73074221,127.78,127.75,0.72]
[1765906283602,28.07101481,127.78,127.75,0.72]
[1765906285409,7.82613768,127.78,127.75,0.72]
[1765906286095,7.82613768,127.78,127.76,8.58]
[1765906286603,0.68,127.79,127.76,8.58]
[1765906286604,7.82533844,127.79,127.76,8.58]
[1765906286815,7.82472613,127.8,127.77,0.72]
[1765906287702,7.82411391,127.81,127.79,0.72]
[1765906287885,7.82411391,127.81,127.79,9.3]
[1765906288092,7.82340088,127.83,127.8,0.72]
[1765906288594,8.50340088,127.83,127.8,0.72]
[1765906288792,8.50340088,127.83,127.76,21.81740036]
[1765906288793,0.68,127.8,127.76,21.81740036]
[1765906288993,10.6597274,127.79,127.75,8.80994492]
[1765906289187,11.3397274,127.79,127.76,8.58]
[1765906289386,0.68,127.8,127.76,9.3]
[1765906289619,11.3397274,127.8,127.76,9.3]
[1765906289989,0.68,127.79,127.76,9.3]
[1765906290390,8.50586193,127.79,127.76,9.3]
[1765906291010,19.16558933,127.79,127.76,9.3]
[1765906291199,19.16558933,127.79,127.76,0.72]
[1765906291514,7.82586193,127.79,127.76,9.3]
[1765906292212,11.3397274,127.8,127.76,17.1270056]
[1765906292415,7.82533844,127.79,127.76,9.3]
[1765906292911,18.48474232,127.8,127.76,16.40713965]
[1765906293114,7.82501492,127.8,127.77,0.72]
[1765906293414,15.06698678,127.8,127.77,0.72]
[1765906293607,15.06698678,127.8,127.76,17.12713965]
[1765906294620,15.06698678,127.8,127.77,17.3564167]
[1765906294913,15.07655824,127.81,127.78,0.72]
[1765906295291,0.69,127.8,127.77,8.80994492]
[1765906295614,6.56197186,127.8,127.76,8.58]
[1765906295794,0.69,127.78,127.76,8.58]
[1765906296418,7.25197186,127.79,127.76,8.58]
[1765906296623,8.51744644,127.76,127.74,8.58]
[1765906297122,15.0794183,127.76,127.74,8.58]
[1765906297692,7.25197186,127.75,127.71,0.72]
[1765906297911,0.69,127.74,127.72,8.58]
[1765906298118,0.69,127.74,127.71,8.80994492]
[1765906298305,7.25197186,127.73,127.69,0.72]
[1765906298510,7.25197186,127.73,127.7,8.58]
[1765906298829,15.08159916,127.72,127.7,8.58]
[1765906299125,14.39159916,127.72,127.7,8.58]
[1765906299510,15.08159916,127.72,127.7,8.58]
[1765906300526,14.39159916,127.72,127.7,8.58]
[1765906300694,7.8296273,127.72,127.7,8.58]
[1765906301520,7.8296273,127.72,127.69,8.58]
[1765906301521,0.69,127.71,127.69,8.58]
[1765906302125,34.65566743,127.72,127.69,8.58]
[1765906302811,15.08159916,127.72,127.69,8.58]
[1765906303118,7.8296273,127.72,127.69,9.3]
[1765906303327,0.69,127.69,127.65,0.72]
[1765906303496,0.69,127.71,127.66,9.52994492]
[1765906303704,7.25197186,127.7,127.66,9.52994492]
[1765906303915,7.25197186,127.69,127.65,9.3]
[1765906304226,0.69,127.69,127.66,0.72]
[1765906304397,7.25197186,127.69,127.66,0.72]
[1765906304596,7.25197186,127.7,127.66,0.72]
[1765906304828,43.23566743,127.72,127.68,0.72]
[1765906305123,34.65566743,127.72,127.68,0.72]
[1765906305527,34.65566743,127.72,127.68,9.3]
[1765906305734,7.82901432,127.73,127.69,0.72]
[1765906306034,7.82846386,127.74,127.71,0.72]
[1765906306228,7.25197186,127.76,127.72,0.72]
[1765906307102,0.69,127.76,127.72,6.56197186]
[1765906307302,8.51717595,127.76,127.72,7.28197186]
[1765906307501,15.07914781,127.76,127.72,0.72]
[1765906307698,8.51717595,127.76,127.72,7.82955058]
[1765906307924,7.82717595,127.76,127.73,0.72]
[1765906308442,8.51717595,127.76,127.73,0.72]
[1765906309122,8.51717595,127.76,127.72,8.54955058]
[1765906309329,8.51717595,127.76,127.72,14.39152244]
[1765906309636,8.51717595,127.76,127.72,15.11152244]
[1765906309941,6.56197186,127.75,127.7,16.64057288]
[1765906310111,0.69,127.74,127.71,8.58]
[1765906310616,0.69,127.74,127.71,9.3]
[1765906310809,0.69,127.74,127.71,8.58]
[1765906311006,0.69,127.72,127.68,0.72]
[1765906311206,7.25197186,127.71,127.67,9.52994492]
[1765906311411,7.25197186,127.7,127.67,8.58]
[1765906312031,7.83146683,127.69,127.67,8.58]
[1765906312734,7.83146683,127.69,127.67,9.3]
[1765906314326,8.52146683,127.69,127.66,18.10994492]
[1765906314627,7.83146683,127.69,127.66,18.10994492]
[1765906315314,7.83146683,127.69,127.67,0.72]
[1765906316135,7.83146683,127.69,127.66,25.94318887]
[1765906316709,0.69,127.68,127.63,11.25767296]
[1765906316931,6.56197186,127.67,127.64,9.3]
[1765906317110,7.25197186,127.68,127.64,9.3]
[1765906317310,0.69,127.68,127.64,23.69642026]
[1765906318231,8.52146683,127.69,127.65,16.64352729]
[1765906318439,7.83146683,127.69,127.66,6.56197186]
[1765906318650,7.83146683,127.69,127.66,0.72]
[1765906319244,6.56197186,127.68,127.64,15.14197186]
[1765906319448,7.25197186,127.67,127.64,8.58]
[1765906319744,0.69,127.66,127.63,0.1]
[1765906319921,7.25197186,127.65,127.63,0.1]
[1765906320325,0.69,127.65,127.63,0.1]
[1765906320729,7.83453462,127.64,127.63,0.1]
[1765906321046,7.83421386,127.65,127.63,0.1]
[1765906321506,8.52421386,127.65,127.63,0.1]
[1765906321711,15.08618572,127.65,127.63,0.1]
[1765906322221,8.52421386,127.65,127.63,0.1]
[1765906322423,15.08618572,127.65,127.63,0.1]
[1765906322817,7.83421386,127.65,127.63,0.82]
[1765906323017,7.83421386,127.65,127.63,0.1]
[1765906323513,15.08618572,127.65,127.63,0.1]
[1765906324011,14.39618572,127.65,127.63,0.1]
[1765906324212,7.83421386,127.65,127.63,0.1]
[1765906324408,8.51421386,127.65,127.63,0.1]
[1765906325243,7.83421386,127.65,127.63,0.1]
[1765906325540,6.57712472,127.67,127.64,0.67]
[1765906325755,28.1610023,127.68,127.65,0.67]
[1765906326042,15.08900844,127.69,127.65,0.67]
[1765906326945,7.83188372,127.69,127.65,7.83372862]
[1765906327129,7.83188372,127.69,127.66,0.67]
[1765906327740,8.51188372,127.69,127.66,0.67]
[1765906328344,7.83188372,127.69,127.66,0.67]
[1765906330960,7.83100323,127.7,127.67,0.67]
[1765906331250,7.83051803,127.71,127.68,0.67]
[1765906331555,7.82988422,127.72,127.7,0.67]
[1765906332058,7.82988422,127.72,127.69,7.24712472]
[1765906333131,7.82988422,127.72,127.7,0.67]
[1765906334455,7.82912791,127.73,127.7,0.67]
[1765906335658,33.97878844,127.73,127.69,8.58]
[1765906335954,0.68,127.69,127.66,9.47994492]
[1765906336153,7.25712472,127.69,127.65,9.25]
[1765906336367,0.68,127.68,127.65,9.25]
[1765906336735,7.25712472,127.68,127.65,9.25]
[1765906336959,7.25712472,127.68,127.65,17.0838475]
[1765906337261,7.25712472,127.68,127.65,9.25]
[1765906337759,8.51239731,127.68,127.65,17.08378559]
[1765906338662,15.08952203,127.68,127.65,8.58]
[1765906338875,0.68,127.67,127.64,0.67]
[1765906339063,7.25712472,127.67,127.64,0.67]
[1765906339560,6.57712472,127.67,127.64,0.67]
[1765906339768,14.41009782,127.67,127.64,0.67]
[1765906339971,7.25712472,127.66,127.63,8.68]
[1765906340273,7.25712472,127.66,127.63,0.77]
[1765906340450,7.25712472,127.66,127.63,0.1]
[1765906340851,7.25712472,127.66,127.63,0.77]
[1765906341462,0.68,127.64,127.63,0.1]
[1765906341638,6.57712472,127.65,127.63,0.1]
[1765906341639,15.09154221,127.65,127.63,0.1]
[1765906341844,7.83441749,127.65,127.63,0.1]
[1765906342045,7.83441749,127.65,127.63,0.77]
[1765906343263,7.83441749,127.65,127.63,0.1]
[1765906343749,7.83441749,127.65,127.63,0.77]
[1765906344369,7.83441749,127.65,127.63,0.1]
[1765906344550,15.09154221,127.65,127.63,0.1]
[1765906344867,14.41154221,127.65,127.63,0.1]
[1765906345242,7.83360704,127.66,127.63,0.77]
[1765906345445,8.51360704,127.66,127.63,0.77]
[1765906345644,10.96869466,127.66,127.63,0.77]
[1765906346476,7.83360704,127.66,127.63,0.77]
[1765906348078,7.83360704,127.66,127.64,0.67]
[1765906348382,0.68,127.71,127.64,0.67]
[1765906348555,3.13508762,127.7,127.66,0.67]
[1765906348749,3.13508762,127.69,127.66,0.67]
[1765906348949,3.13508762,127.68,127.65,8.58]
[1765906349148,3.13508762,127.68,127.65,9.25]
[1765906349477,10.96766435,127.68,127.65,9.25]
[1765906350073,7.83257673,127.68,127.65,17.08385301]
[1765906350262,8.51257673,127.68,127.65,17.08385301]
[1765906350772,7.83257673,127.68,127.65,17.08385301]
[1765906350946,7.83257673,127.68,127.65,16.41385301]
[1765906351146,7.83257673,127.68,127.66,0.67]
[1765906351853,7.83257673,127.68,127.65,9.25]
[1765906352070,7.83257673,127.68,127.66,0.67]
[1765906352375,7.83257673,127.68,127.65,17.0838858]
[1765906352573,7.83174169,127.69,127.66,8.50307107]
[1765906352778,3.13508762,127.71,127.67,0.67]
[1765906353345,8.51036538,127.71,127.68,0.67]
[1765906353576,7.83036538,127.71,127.68,9.25]
[1765906353770,7.83036538,127.71,127.68,11.03508762]
[1765906353968,8.50036538,127.71,127.68,9.28]
[1765906355091,7.82995915,127.72,127.68,9.28]
[1765906355382,0.67,127.75,127.72,0.7]
[1765906355553,0.67,127.75,127.72,9.28]
[1765906355760,37.83278879,127.76,127.73,0.7]
[1765906355973,7.82717595,127.76,127.73,0.7]
[1765906356164,8.49717595,127.76,127.73,0.7]
[1765906356396,7.82671338,127.77,127.73,4.53046747]
[1765906356552,4.50046747,127.79,127.75,0.7]
[1765906356752,8.49547336,127.79,127.75,9.28]
[1765906356975,8.49547336,127.79,127.76,0.7]
[1765906357481,7.82547336,127.79,127.76,0.7]
[1765906357883,7.82411391,127.81,127.78,0.7]
[1765906358056,7.82411391,127.81,127.78,9.28]
[1765906358759,175.28,127.85,127.8,0.7]
[1765906358760,7.82227784,127.84,127.8,0.7]
[1765906358966,19.15569998,127.84,127.8,0.7]
[1765906359752,0.67,127.83,127.8,0.7]
[1765906359975,38.04139459,127.84,127.79,8.58]
[1765906359976,11.33342214,127.82,127.79,8.58]